fUST/lending_fUST_20250220
["ID","MTS","AMOUNT","RATE_DAILY","PERIOD"]
[353761702,1740016242503,-500.0,0.00014027,2]
[353761703,1740016242513,-500.0,0.00014027,2]
[353761704,1740016242522,-500.0,0.00014027,2]
[353761705,1740016242532,-500.0,0.00014027,2]
[353761706,1740016242541,-500.0,0.00014027,2]
[353761707,1740016242551,-326.8092449,0.00014027,2]
[353761708,1740016242561,-500.0,0.00014027,2]
[353761709,1740016242570,-584.05,0.00014027,2]
[353761710,1740016242580,-500.0,0.00014027,2]
[353761711,1740016242590,-500.0,0.00014027,2]
[353761712,1740016242601,-832.57,0.00014027,2]
[353761713,1740016242611,-1332.97,0.00014027,2]
[353761714,1740016242620,-959.47,0.00014027,2]
[353761715,1740016242631,-519.81,0.00014027,2]
[353761716,1740016242641,-500.0,0.00014027,2]
[353761717,1740016242651,-180.16089661,0.00014027,2]
[353761718,1740016242660,-500.0,0.00014027,2]
[353761719,1740016242670,-816.37,0.00014027,2]
[353761720,1740016242679,-500.0,0.00014027,2]
[353761721,1740016242689,-500.0,0.00014027,2]
[353761722,1740016242699,-500.0,0.00014027,2]
[353761723,1740016242708,-500.0,0.00014027,2]
[353761724,1740016242718,-3832.1,0.00014027,2]
[353761725,1740016242727,-500.0,0.00014027,2]
[353761726,1740016242736,-951.13,0.00014027,2]
[353761727,1740016242746,-1133.99,0.00014027,2]
[353761728,1740016242755,-1261.84,0.00014027,2]
[353761729,1740016242887,-500.0,0.00014027,2]
[353761730,1740016242904,-500.0,0.00014027,2]
[353761731,1740016242914,-600.74,0.00014027,2]
[353761732,1740016242924,-3070.64,0.00014027,2]
[353761733,1740016242934,-661.07,0.00014027,2]
[353761734,1740016242944,-10140.71,0.00014027,2]
[353761735,1740016242954,-500.0,0.00014027,2]
[353761736,1740016242964,-500.0,0.00014027,2]
[353761737,1740016242973,-500.0,0.00014027,2]
[353761738,1740016242983,-163.28253331,0.00014027,2]
[353761739,1740016242994,-153.0,0.000141,2]
[353761740,1740016243003,-500.0,0.00014109,2]
[353761741,1740016243013,-500.0,0.00014109,2]
[353761742,1740016243023,-458.52193003,0.00014109,2]
[353761743,1740016243035,-500.0,0.00014109,2]
[353761744,1740016243048,-500.0,0.00014109,2]
[353761745,1740016243058,-500.0,0.00014109,2]
[353761746,1740016243068,-500.0,0.00014109,2]
[353761747,1740016243079,-500.0,0.00014109,2]
[353761748,1740016243089,-208.55262479,0.00014109,2]
[353761749,1740016243099,-500.0,0.00014109,2]
[353761750,1740016243110,-584.05,0.00014109,2]
[353761751,1740016243120,-500.0,0.00014109,2]
[353761752,1740016243130,-500.0,0.00014109,2]
[353761753,1740016243140,-832.57,0.00014109,2]
[353761754,1740016243150,-1332.97,0.00014109,2]
[353761755,1740016243160,-959.47,0.00014109,2]
[353761756,1740016243173,-519.81,0.00014109,2]
[353761757,1740016243183,-500.0,0.00014109,2]
[353761758,1740016243192,-475.06630219,0.00014109,2]
[353761759,1740016243201,-816.37,0.00014109,2]
[353761760,1740016243211,-500.0,0.00014109,2]
[353761761,1740016243220,-500.0,0.00014109,2]
[353761762,1740016243230,-500.0,0.00014109,2]
[353761763,1740016243240,-500.0,0.00014109,2]
[353761764,1740016243249,-3832.1,0.00014109,2]
[353761765,1740016243259,-500.0,0.00014109,2]
[353761766,1740016243268,-951.13,0.00014109,2]
[353761767,1740016243278,-1133.99,0.00014109,2]
[353761768,1740016243287,-1261.84,0.00014109,2]
[353761769,1740016243297,-500.0,0.00014109,2]
[353761770,1740016243307,-500.0,0.00014109,2]
[353761771,1740016243319,-600.74,0.00014109,2]
[353761772,1740016243329,-3070.64,0.00014109,2]
[353761773,1740016243338,-661.07,0.00014109,2]
[353761774,1740016243347,-10140.71,0.00014109,2]
[353761775,1740016243357,-500.0,0.00014109,2]
[353761776,1740016243367,-500.0,0.00014109,2]
[353761777,1740016243376,-500.0,0.00014109,2]
[353761778,1740016243386,-504.23144151,0.00014114,2]
[353761779,1740016243396,-150.04169451,0.00014114,2]
[353761780,1740016243406,-500.0,0.00014114,2]
[353761781,1740016243418,-500.22396336,0.00014114,2]
[353761782,1740016243427,-501.63751902,0.00014114,2]
[353761783,1740016243438,-7438.69753278,0.00014167,2]
[353761784,1740016243447,-219.29832983,0.00014191,2]
[353761785,1740016243458,-580.42437664,0.00014191,2]
[353761786,1740016243467,-500.0,0.00014191,2]
[353761787,1740016243476,-500.0,0.00014191,2]
[353761788,1740016243487,-500.0,0.00014191,2]
[353761789,1740016243497,-500.0,0.00014191,2]
[353761790,1740016243508,-500.0,0.00014191,2]
[353761791,1740016243518,-500.0,0.00014191,2]
[353761792,1740016243528,-584.05,0.00014191,2]
[353761793,1740016243538,-500.0,0.00014191,2]
[353761794,1740016243547,-500.0,0.00014191,2]
[353761795,1740016243557,-832.57,0.00014191,2]
[353761796,1740016243566,-1332.97,0.00014191,2]
[353761797,1740016243575,-959.47,0.00014191,2]
[353761798,1740016243586,-519.81,0.00014191,2]
[353761799,1740016243596,-500.0,0.00014191,2]
[353761800,1740016243606,-816.37,0.00014191,2]
[353761801,1740016243616,-500.0,0.00014191,2]
[353761802,1740016243626,-500.0,0.00014191,2]
[353761803,1740016243636,-500.0,0.00014191,2]
[353761804,1740016243646,-500.0,0.00014191,2]
[353761805,1740016243655,-3832.1,0.00014191,2]
[353761806,1740016243665,-500.0,0.00014191,2]
[353761807,1740016243674,-951.13,0.00014191,2]
[353761808,1740016243683,-1133.99,0.00014191,2]
[353761809,1740016243693,-1261.84,0.00014191,2]
[353761810,1740016243703,-500.0,0.00014191,2]
[353761811,1740016243715,-500.0,0.00014191,2]
[353761812,1740016243725,-600.74,0.00014191,2]
[353761813,1740016243736,-3070.64,0.00014191,2]
[353761814,1740016243745,-661.07,0.00014191,2]
[353761815,1740016243755,-10140.71,0.00014191,2]
[353761816,1740016243765,-435.58357308,0.00014191,2]
[353761817,1740016243774,-500.0,0.00014191,2]
[353761818,1740016243784,-500.0,0.00014191,2]
[353761819,1740016243793,-151.0,0.000142,2]
[353761820,1740016243802,-500.0,0.00014247,2]
[353761821,1740016243812,-295.50559188,0.00014249,2]
[353761822,1740016243822,-565.71237265,0.00014273,2]
[353761823,1740016243831,-500.0,0.00014273,2]
[353761824,1740016243841,-500.0,0.00014273,2]
[353761825,1740016243850,-500.0,0.00014273,2]
[353761826,1740016243860,-500.0,0.00014273,2]
[353761828,1740016243869,-500.0,0.00014273,2]
[353761831,1740016243879,-584.05,0.00014273,2]
[353761833,1740016243889,-500.0,0.00014273,2]
[353761834,1740016243898,-500.0,0.00014273,2]
[353761835,1740016243908,-832.57,0.00014273,2]
[353761837,1740016243918,-1332.97,0.00014273,2]
[353761839,1740016243927,-959.47,0.00014273,2]
[353761841,1740016243937,-519.81,0.00014273,2]
[353761842,1740016243947,-500.0,0.00014273,2]
[353761843,1740016243956,-816.37,0.00014273,2]
[353761844,1740016243966,-500.0,0.00014273,2]
[353761845,1740016243976,-500.0,0.00014273,2]
[353761846,1740016243986,-500.0,0.00014273,2]
[353761847,1740016243996,-500.0,0.00014273,2]
[353761848,1740016244006,-3832.1,0.00014273,2]
[353761849,1740016244015,-500.0,0.00014273,2]
[353761850,1740016244025,-951.13,0.00014273,2]
[353761851,1740016244035,-1133.99,0.00014273,2]
[353761852,1740016244050,-1261.84,0.00014273,2]
[353761853,1740016244060,-500.0,0.00014273,2]
[353761854,1740016244069,-500.0,0.00014273,2]
[353761855,1740016244079,-600.74,0.00014273,2]
[353761856,1740016244088,-3070.64,0.00014273,2]
[353761857,1740016244098,-661.07,0.00014273,2]
[353761858,1740016244107,-10140.71,0.00014273,2]
[353761859,1740016244117,-500.0,0.00014273,2]
[353761860,1740016244127,-500.0,0.00014273,2]
[353761861,1740016244136,-151.0,0.000143,2]
[353761862,1740016244146,-426.0,0.00014349,2]
[353761863,1740016244156,-411.0,0.00014349,2]
[353761864,1740016244165,-411.0,0.00014349,2]
[353761865,1740016244175,-411.0,0.00014349,2]
[353761866,1740016244184,-411.0,0.00014349,2]
[353761867,1740016244194,-411.0,0.00014349,2]
[353761868,1740016244203,-411.0,0.00014349,2]
[353761869,1740016244212,-411.0,0.00014349,2]
[353761870,1740016244222,-411.0,0.00014349,2]
[353761871,1740016244231,-411.0,0.00014349,2]
[353761872,1740016244241,-411.0,0.00014349,2]
[353761873,1740016244250,-411.0,0.00014349,2]
[353761874,1740016244260,-411.0,0.00014349,2]
[353761875,1740016244269,-411.0,0.00014349,2]
[353761876,1740016244279,-411.0,0.00014349,2]
[353761877,1740016244289,-411.0,0.00014349,2]
[353761878,1740016244298,-411.0,0.00014349,2]
[353761880,1740016244307,-411.0,0.00014349,2]
[353761881,1740016244317,-411.0,0.00014349,2]
[353761882,1740016244326,-411.0,0.00014349,2]
[353761883,1740016244335,-411.0,0.00014349,2]
[353761884,1740016244345,-411.0,0.00014349,2]
[353761885,1740016244355,-411.0,0.00014349,2]
[353761886,1740016244364,-411.0,0.00014349,2]
[353761887,1740016244375,-411.0,0.00014349,2]
[353761888,1740016244384,-411.0,0.00014349,2]
[353761889,1740016244394,-411.0,0.00014349,2]
[353761890,1740016244404,-411.0,0.00014349,2]
[353761891,1740016244416,-411.0,0.00014349,2]
[353761892,1740016244426,-411.0,0.00014349,2]
[353761893,1740016244435,-411.0,0.00014349,2]
[353761894,1740016244445,-411.0,0.00014349,2]
[353761895,1740016244455,-411.0,0.00014349,2]
[353761896,1740016244465,-411.0,0.00014349,2]
[353761897,1740016244474,-411.0,0.00014349,2]
[353761898,1740016244484,-411.0,0.00014349,2]
[353761899,1740016244493,-411.0,0.00014349,2]
[353761900,1740016244502,-411.0,0.00014349,2]
[353761901,1740016244512,-411.0,0.00014349,2]
[353761902,1740016244522,-411.0,0.00014349,2]
[353761903,1740016244531,-411.0,0.00014349,2]
[353761904,1740016244540,-411.0,0.00014349,2]
[353761905,1740016244550,-411.0,0.00014349,2]
[353761906,1740016244560,-411.0,0.00014349,2]
[353761907,1740016244569,-411.0,0.00014349,2]
[353761908,1740016244578,-411.0,0.00014349,2]
[353761909,1740016244587,-411.0,0.00014349,2]
[353761910,1740016244597,-411.0,0.00014349,2]
[353761911,1740016244607,-411.0,0.00014349,2]
[353761912,1740016244617,-411.0,0.00014349,2]
[353761913,1740016244626,-411.0,0.00014349,2]
[353761915,1740016244635,-411.0,0.00014349,2]
[353761916,1740016244644,-411.0,0.00014349,2]
[353761917,1740016244653,-411.0,0.00014349,2]
[353761918,1740016244663,-411.0,0.00014349,2]
[353761919,1740016244672,-411.0,0.00014349,2]
[353761920,1740016244681,-411.0,0.00014349,2]
[353761921,1740016244691,-411.0,0.00014349,2]
[353761922,1740016244699,-411.0,0.00014349,2]
[353761923,1740016244709,-411.0,0.00014349,2]
[353761924,1740016244718,-411.0,0.00014349,2]
[353761925,1740016244727,-411.0,0.00014349,2]
[353761926,1740016244736,-411.0,0.00014349,2]
[353761927,1740016244746,-411.0,0.00014349,2]
[353761928,1740016244755,-411.0,0.00014349,2]
[353761929,1740016244765,-411.0,0.00014349,2]
[353761930,1740016244774,-411.0,0.00014349,2]
[353761931,1740016244784,-411.0,0.00014349,2]
[353761932,1740016244794,-411.0,0.00014349,2]
[353761933,1740016244803,-411.0,0.00014349,2]
[353761934,1740016244812,-411.0,0.00014349,2]
[353761935,1740016244822,-411.0,0.00014349,2]
[353761936,1740016244832,-411.0,0.00014349,2]
[353761937,1740016244841,-411.0,0.00014349,2]
[353761938,1740016244851,-411.0,0.00014349,2]
[353761939,1740016244861,-411.0,0.00014349,2]
[353761940,1740016244871,-411.0,0.00014349,2]
[353761941,1740016244880,-411.0,0.00014349,2]
[353761942,1740016244890,-411.0,0.00014349,2]
[353761943,1740016244900,-411.0,0.00014349,2]
[353761944,1740016244910,-411.0,0.00014349,2]
[353761945,1740016244920,-411.0,0.00014349,2]
[353761946,1740016244930,-411.0,0.00014349,2]
[353761947,1740016244940,-411.0,0.00014349,2]
[353761948,1740016244950,-411.0,0.00014349,2]
[353761949,1740016244961,-411.0,0.00014349,2]
[353761950,1740016244971,-411.0,0.00014349,2]
[353761951,1740016244980,-411.0,0.00014349,2]
[353761952,1740016244990,-411.0,0.00014349,2]
[353761953,1740016245000,-411.0,0.00014349,2]
[353761954,1740016245010,-411.0,0.00014349,2]
[353761955,1740016245019,-411.0,0.00014349,2]
[353761956,1740016245029,-411.0,0.00014349,2]
[353761957,1740016245039,-411.0,0.00014349,2]
[353761958,1740016245048,-411.0,0.00014349,2]
[353761959,1740016245057,-411.0,0.00014349,2]
[353761960,1740016245067,-411.0,0.00014349,2]
[353761961,1740016245076,-411.0,0.00014349,2]
[353761962,1740016245087,-216.0,0.00014349,2]
[353761963,1740016245097,-216.0,0.00014349,2]
[353761964,1740016245108,-216.0,0.00014349,2]
[353761965,1740016245119,-216.0,0.00014349,2]
[353761966,1740016245128,-216.0,0.00014349,2]
[353761967,1740016245138,-216.0,0.00014349,2]
[353761968,1740016245149,-216.0,0.00014349,2]
[353761969,1740016245159,-216.0,0.00014349,2]
[353761970,1740016245170,-216.0,0.00014349,2]
[353761971,1740016245180,-216.0,0.00014349,2]
[353761972,1740016245189,-216.0,0.00014349,2]
[353761973,1740016245200,-216.0,0.00014349,2]
[353761974,1740016245209,-216.0,0.00014349,2]
[353761975,1740016245219,-216.0,0.00014349,2]
[353761976,1740016245228,-216.0,0.00014349,2]
[353761977,1740016245239,-216.0,0.00014349,2]
[353761978,1740016245248,-216.0,0.00014349,2]
[353761979,1740016245257,-216.0,0.00014349,2]
[353761980,1740016245267,-216.0,0.00014349,2]
[353761981,1740016245276,-216.0,0.00014349,2]
[353761982,1740016245286,-216.0,0.00014349,2]
[353761983,1740016245295,-216.0,0.00014349,2]
[353761984,1740016245306,-216.0,0.00014349,2]
[353761985,1740016245316,-216.0,0.00014349,2]
[353761986,1740016245326,-216.0,0.00014349,2]
[353761987,1740016245367,-216.0,0.00014349,2]
[353761988,1740016245377,-216.0,0.00014349,2]
[353761989,1740016245387,-216.0,0.00014349,2]
[353761990,1740016245398,-216.0,0.00014349,2]
[353761991,1740016245409,-216.0,0.00014349,2]
[353761992,1740016245418,-216.0,0.00014349,2]
[353761993,1740016245427,-216.0,0.00014349,2]
[353761994,1740016245437,-216.0,0.00014349,2]
[353761995,1740016245446,-216.0,0.00014349,2]
[353761996,1740016245456,-216.0,0.00014349,2]
[353761997,1740016245465,-216.0,0.00014349,2]
[353761998,1740016245475,-216.0,0.00014349,2]
[353761999,1740016245485,-216.0,0.00014349,2]
[353762000,1740016245495,-216.0,0.00014349,2]
[353762001,1740016245505,-216.0,0.00014349,2]
[353762002,1740016245515,-216.0,0.00014349,2]
[353762003,1740016245524,-216.0,0.00014349,2]
[353762004,1740016245534,-216.0,0.00014349,2]
[353762005,1740016245543,-216.0,0.00014349,2]
[353762006,1740016245553,-216.0,0.00014349,2]
[353762007,1740016245562,-216.0,0.00014349,2]
[353762008,1740016245572,-216.0,0.00014349,2]
[353762009,1740016245581,-216.0,0.00014349,2]
[353762010,1740016245590,-216.0,0.00014349,2]
[353762011,1740016245600,-216.0,0.00014349,2]
[353762012,1740016245610,-216.0,0.00014349,2]
[353762013,1740016245619,-216.0,0.00014349,2]
[353762014,1740016245629,-216.0,0.00014349,2]
[353762015,1740016245638,-216.0,0.00014349,2]
[353762016,1740016245648,-216.0,0.00014349,2]
[353762017,1740016245657,-216.0,0.00014349,2]
[353762018,1740016245667,-216.0,0.00014349,2]
[353762019,1740016245676,-216.0,0.00014349,2]
[353762020,1740016245686,-216.0,0.00014349,2]
[353762021,1740016245696,-216.0,0.00014349,2]
[353762022,1740016245705,-216.0,0.00014349,2]
[353762023,1740016245715,-216.0,0.00014349,2]
[353762024,1740016245724,-216.0,0.00014349,2]
[353762025,1740016245734,-216.0,0.00014349,2]
[353762026,1740016245743,-216.0,0.00014349,2]
[353762027,1740016245753,-216.0,0.00014349,2]
[353762028,1740016245763,-216.0,0.00014349,2]
[353762029,1740016245773,-216.0,0.00014349,2]
[353762030,1740016245782,-216.0,0.00014349,2]
[353762031,1740016245792,-216.0,0.00014349,2]
[353762032,1740016245801,-216.0,0.00014349,2]
[353762033,1740016245810,-216.0,0.00014349,2]
[353762034,1740016245819,-216.0,0.00014349,2]
[353762035,1740016245829,-216.0,0.00014349,2]
[353762036,1740016245838,-216.0,0.00014349,2]
[353762037,1740016245848,-216.0,0.00014349,2]
[353762038,1740016245858,-216.0,0.00014349,2]
[353762039,1740016245867,-216.0,0.00014349,2]
[353762040,1740016245877,-216.0,0.00014349,2]
[353762041,1740016245886,-216.0,0.00014349,2]
[353762042,1740016245896,-216.0,0.00014349,2]
[353762043,1740016245905,-216.0,0.00014349,2]
[353762044,1740016245915,-216.0,0.00014349,2]
[353762045,1740016245924,-216.0,0.00014349,2]
[353762046,1740016245934,-216.0,0.00014349,2]
[353762047,1740016245944,-216.0,0.00014349,2]
[353762048,1740016245954,-216.0,0.00014349,2]
[353762049,1740016245965,-216.0,0.00014349,2]
[353762050,1740016245974,-216.0,0.00014349,2]
[353762051,1740016245984,-216.0,0.00014349,2]
[353762052,1740016245994,-216.0,0.00014349,2]
[353762053,1740016246003,-216.0,0.00014349,2]
[353762054,1740016246013,-216.0,0.00014349,2]
[353762055,1740016246023,-216.0,0.00014349,2]
[353762056,1740016246033,-216.0,0.00014349,2]
[353762057,1740016246043,-216.0,0.00014349,2]
[353762058,1740016246052,-216.0,0.00014349,2]
[353762059,1740016246062,-335.0,0.00014349,2]
[353762060,1740016246071,-335.0,0.00014349,2]
[353762061,1740016246080,-335.0,0.00014349,2]
[353762062,1740016246091,-418.0,0.00014349,2]
[353762063,1740016246100,-418.0,0.00014349,2]
[353762064,1740016246111,-500.0,0.00014356,2]
[353762066,1740016246121,-287.42885294,0.00014356,2]
[353762067,1740016246131,-500.0,0.00014356,2]
[353762068,1740016246141,-519.11106853,0.00014356,2]
[353762069,1740016246150,-500.0,0.00014356,2]
[353762070,1740016246161,-584.05,0.00014356,2]
[353762071,1740016246171,-500.0,0.00014356,2]
[353762072,1740016246182,-500.0,0.00014356,2]
[353762074,1740016246192,-832.57,0.00014356,2]
[353762075,1740016246203,-1332.97,0.00014356,2]
[353762076,1740016246213,-959.47,0.00014356,2]
[353762078,1740016246223,-519.81,0.00014356,2]
[353762080,1740016246234,-500.0,0.00014356,2]
[353762082,1740016246246,-816.37,0.00014356,2]
[353762084,1740016246256,-500.0,0.00014356,2]
[353762085,1740016246266,-500.0,0.00014356,2]
[353762086,1740016246276,-500.0,0.00014356,2]
[353762087,1740016246286,-500.0,0.00014356,2]
[353762088,1740016246295,-3832.1,0.00014356,2]
[353762089,1740016246306,-500.0,0.00014356,2]
[353762090,1740016246315,-951.13,0.00014356,2]
[353762091,1740016246324,-1133.99,0.00014356,2]
[353762092,1740016246334,-1261.84,0.00014356,2]
[353762093,1740016246343,-500.0,0.00014356,2]
[353762094,1740016246353,-500.0,0.00014356,2]
[353762095,1740016246363,-600.74,0.00014356,2]
[353762096,1740016246373,-3070.64,0.00014356,2]
[353762097,1740016246383,-661.07,0.00014356,2]
[353762098,1740016246393,-10140.71,0.00014356,2]
[353762099,1740016246402,-500.0,0.00014356,2]
[353762100,1740016246415,-500.0,0.00014356,2]
[353762101,1740016246424,-151.0,0.000144,2]
[353762102,1740016246434,-500.0,0.00014438,2]
[353762103,1740016246444,-500.0,0.00014438,2]
[353762104,1740016246455,-500.0,0.00014438,2]
[353762105,1740016246466,-584.05,0.00014438,2]
[353762106,1740016246476,-500.0,0.00014438,2]
[353762107,1740016246487,-500.0,0.00014438,2]
[353762108,1740016246497,-832.57,0.00014438,2]
[353762109,1740016246507,-1332.97,0.00014438,2]
[353762110,1740016246517,-959.47,0.00014438,2]
[353762111,1740016246528,-519.81,0.00014438,2]
[353762112,1740016246538,-500.0,0.00014438,2]
[353762113,1740016246548,-816.37,0.00014438,2]
[353762114,1740016246558,-500.0,0.00014438,2]
[353762115,1740016246568,-500.0,0.00014438,2]
[353762116,1740016246578,-500.0,0.00014438,2]
[353762117,1740016246588,-500.0,0.00014438,2]
[353762118,1740016246598,-3832.1,0.00014438,2]
[353762119,1740016246609,-500.0,0.00014438,2]
[353762120,1740016246619,-951.13,0.00014438,2]
[353762121,1740016246631,-1133.99,0.00014438,2]
[353762122,1740016246640,-1261.84,0.00014438,2]
[353762123,1740016246651,-500.0,0.00014438,2]
[353762124,1740016246661,-500.0,0.00014438,2]
[353762125,1740016246672,-600.74,0.00014438,2]
[353762126,1740016246682,-3070.64,0.00014438,2]
[353762127,1740016246693,-661.07,0.00014438,2]
[353762128,1740016246703,-10140.71,0.00014438,2]
[353762129,1740016246714,-500.0,0.00014438,2]
[353762130,1740016246724,-500.0,0.00014438,2]
[353762131,1740016246735,-151.0,0.000145,2]
[353762132,1740016246745,-500.0,0.0001452,2]
[353762133,1740016246755,-500.0,0.0001452,2]
[353762134,1740016246765,-500.0,0.0001452,2]
[353762135,1740016246775,-584.05,0.0001452,2]
[353762136,1740016246786,-500.0,0.0001452,2]
[353762137,1740016246796,-586.74192858,0.0001452,2]
[353762138,1740016246806,-832.57,0.0001452,2]
[353762139,1740016246815,-1332.97,0.0001452,2]
[353762140,1740016246825,-959.47,0.0001452,2]
[353762141,1740016246835,-519.81,0.0001452,2]
[353762142,1740016246844,-500.0,0.0001452,2]
[353762143,1740016246856,-816.37,0.0001452,2]
[353762144,1740016246866,-500.0,0.0001452,2]
[353762145,1740016246876,-500.0,0.0001452,2]
[353762146,1740016246886,-500.0,0.0001452,2]
[353762147,1740016246897,-500.0,0.0001452,2]
[353762148,1740016246908,-3832.1,0.0001452,2]
[353762149,1740016246919,-500.0,0.0001452,2]
[353762150,1740016246929,-951.13,0.0001452,2]
[353762151,1740016246939,-1133.99,0.0001452,2]
[353762152,1740016246949,-1261.84,0.0001452,2]
[353762153,1740016246960,-500.0,0.0001452,2]
[353762154,1740016246970,-500.0,0.0001452,2]
[353762155,1740016246980,-600.74,0.0001452,2]
[353762156,1740016246991,-3070.64,0.0001452,2]
[353762157,1740016247001,-661.07,0.0001452,2]
[353762158,1740016247011,-10140.71,0.0001452,2]
[353762159,1740016247020,-500.0,0.0001452,2]
[353762160,1740016247030,-500.0,0.0001452,2]
[353762161,1740016247040,-295.50559185,0.00014559,2]
[353762162,1740016247050,-151.0,0.000146,2]
[353762163,1740016247060,-457.56423042,0.00014602,2]
[353762164,1740016247070,-500.0,0.00014602,2]
[353762165,1740016247080,-500.0,0.00014602,2]
[353762166,1740016247090,-584.05,0.00014602,2]
[353762167,1740016247100,-500.0,0.00014602,2]
[353762168,1740016247112,-832.57,0.00014602,2]
[353762169,1740016247122,-1332.97,0.00014602,2]
[353762170,1740016247132,-959.47,0.00014602,2]
[353762171,1740016247143,-519.81,0.00014602,2]
[353762172,1740016247153,-500.0,0.00014602,2]
[353762173,1740016247163,-816.37,0.00014602,2]
[353762174,1740016247174,-500.0,0.00014602,2]
[353762175,1740016247185,-500.0,0.00014602,2]
[353762176,1740016247195,-500.0,0.00014602,2]
[353762177,1740016247205,-500.0,0.00014602,2]
[353762178,1740016247215,-3832.1,0.00014602,2]
[353762179,1740016247224,-500.0,0.00014602,2]
[353762180,1740016247235,-951.13,0.00014602,2]
[353762181,1740016247245,-1133.99,0.00014602,2]
[353762182,1740016247255,-1261.84,0.00014602,2]
[353762183,1740016247266,-156.7748961,0.00014602,2]
[353762184,1740016247277,-500.0,0.00014602,2]
[353762185,1740016247287,-600.74,0.00014602,2]
[353762186,1740016247297,-3070.64,0.00014602,2]
[353762187,1740016247307,-661.07,0.00014602,2]
[353762188,1740016247317,-10140.71,0.00014602,2]
[353762189,1740016247327,-500.0,0.00014602,2]
[353762190,1740016247338,-500.0,0.00014602,2]
[353762191,1740016247348,-13275.78028017,0.00014615,2]
[353762192,1740016247358,-1000.0,0.00014662,2]
[353762193,1740016247368,-500.0,0.00014684,2]
[353762194,1740016247378,-500.0,0.00014684,2]
[353762195,1740016247389,-584.05,0.00014684,2]
[353762196,1740016247398,-500.0,0.00014684,2]
[353762197,1740016247409,-832.57,0.00014684,2]
[353762198,1740016247420,-1332.97,0.00014684,2]
[353762199,1740016247430,-959.47,0.00014684,2]
[353762200,1740016247440,-519.81,0.00014684,2]
[353762201,1740016247450,-502.17586421,0.00014684,2]
[353762202,1740016247463,-816.37,0.00014684,2]
[353762203,1740016247473,-500.0,0.00014684,2]
[353762204,1740016247483,-500.0,0.00014684,2]
[353762205,1740016247494,-500.0,0.00014684,2]
[353762206,1740016247505,-500.0,0.00014684,2]
[353762207,1740016247515,-3832.1,0.00014684,2]
[353762208,1740016247526,-500.0,0.00014684,2]
[353762209,1740016247536,-951.13,0.00014684,2]
[353762210,1740016247547,-1133.99,0.00014684,2]
[353762211,1740016247557,-1261.84,0.00014684,2]
[353762212,1740016247567,-500.0,0.00014684,2]
[353762213,1740016247578,-600.74,0.00014684,2]
[353762214,1740016247588,-3070.64,0.00014684,2]
[353762215,1740016247598,-661.07,0.00014684,2]
[353762216,1740016247609,-10140.71,0.00014684,2]